bitfinex-derivatives/quotes_ETHF0:USTF0_20250624
["timestamp","ask_amount","ask_price","bid_price","bid_amount"]
[1750783810238,0.81044,2466.5,2466.2,4.01831]
[1750783810440,6.55217,2466.8,2465.8,3.2078]
[1750783810743,1.3185,2466.4,2465.8,3.2078]
[1750783810937,0.81059,2466.0,2465.8,3.2078]
[1750783811139,0.81057,2466.1,2465.8,4.01843]
[1750783811341,3.2078,2467.7,2466.0,6.6108165]
[1750783811540,2.02558,2467.1,2466.4,3.2078]
[1750783811736,3.2078,2467.0,2466.4,3.2078]
[1750783812241,3.2078,2467.0,2466.6,0.81038]
[1750783812549,3.2078,2467.0,2466.4,3.2078]
[1750783812845,0.81044,2466.5,2466.1,0.81053]
[1750783813051,0.81044,2466.5,2466.1,0.81054]
[1750783813246,2.13884,2466.5,2466.1,0.81054]
[1750783813448,2.13883,2466.5,2466.1,0.81056]
[1750783813947,2.13883,2466.5,2466.2,0.8105]
[1750783814145,0.81053,2466.2,2465.6,1.3502]
[1750783814348,0.81053,2466.2,2465.9,0.81061]
[1750783814544,0.81051,2466.3,2465.9,0.81061]
[1750783814750,4.5362,2466.3,2465.5,0.6618]
[1750783815342,0.81064,2465.9,2465.6,0.81071]
[1750783815537,3.2078,2466.0,2465.4,3.2078]
[1750783815742,1.3284,2465.8,2465.2,3.2078]
[1750783815942,18.1088,2465.7,2465.0,0.8109]
[1750783816146,0.81087,2465.2,2464.9,4.01874]
[1750783816348,0.81087,2465.2,2464.9,3.2078]
[1750783816550,0.81079,2465.4,2464.9,3.2078]
[1750783816747,0.81078,2465.5,2465.1,0.81088]
[1750783816946,0.81078,2465.5,2465.0,1.3159]
[1750783816947,16.2041,2465.6,2465.2,3.2078]
[1750783817251,0.81083,2465.3,2465.0,2.12681]
[1750783817550,0.81079,2465.5,2465.2,0.81084]
[1750783817750,0.81077,2465.5,2465.2,0.81085]
[1750783817947,1.3031,2465.5,2465.0,1.3159]
[1750783818144,1.3031,2465.5,2464.6,3.8678]
[1750783818145,3.33,2465.5,2464.6,3.8678]
[1750783818351,0.81091,2465.1,2464.8,0.81097]
[1750783818554,0.8108,2465.4,2465.1,0.81088]
[1750783818947,1.3031,2465.5,2465.0,0.8109]
[1750783819151,1.3031,2465.5,2465.1,0.81088]
[1750783819350,1.3031,2465.5,2465.4,0.81079]
[1750783819753,18.1118,2465.7,2465.6,0.81072]
[1750783819957,46.689,2466.0,2465.3,3.2078]
[1750783819958,49.8968,2466.0,2465.3,3.2078]
[1750783820151,49.8968,2466.0,2465.4,1.3194]
[1750783820352,49.9068,2466.8,2466.4,0.81046]
[1750783820553,0.81041,2466.6,2466.4,0.81046]
[1750783820752,15.71638,2466.7,2466.4,0.81046]
[1750783821056,49.9068,2466.8,2465.9,2.02656]
[1750783821258,64.8128,2466.8,2466.5,0.81041]
[1750783821459,3.2078,2466.7,2466.4,0.81045]
[1750783821759,4.5238,2466.7,2466.4,0.81046]
[1750783821958,4.5238,2466.7,2466.6,0.81039]
[1750783822155,4.5238,2466.7,2466.1,4.5272]
[1750783822364,4.5238,2466.7,2465.7,3.8645]
[1750783822563,0.81052,2466.2,2466.0,0.81058]
[1750783822751,0.81052,2466.2,2465.7,3.8645]
[1750783822752,2.02607,2466.5,2465.8,0.81064]
[1750783822947,4.5882,2466.4,2465.7,3.8645]
[1750783823256,1.3804,2466.4,2466.2,0.8105]
[1750783823656,1.3804,2466.4,2465.8,1.3699]
[1750783823858,1.3804,2466.4,2466.3,0.81049]
[1750783824050,3.2078,2466.7,2466.0,3.2078]
[1750783824251,0.81048,2466.4,2466.2,0.81051]
[1750783824758,1.3804,2466.6,2466.4,0.81044]
[1750783825263,2.19081,2466.6,2466.4,0.81045]
[1750783825459,2.19081,2466.6,2466.3,0.81047]
[1750783825662,0.81043,2466.5,2466.3,0.81047]
[1750783826158,3.2078,2466.7,2466.0,3.2078]
[1750783826458,2.02567,2467.0,2466.1,3.2078]
[1750783826652,0.81042,2466.6,2466.4,0.81045]
[1750783826854,0.81042,2466.6,2466.5,0.81043]
[1750783827050,0.81042,2466.6,2466.2,1.2975]
[1750783827256,2.02599,2466.6,2466.1,3.2078]
[1750783827458,2.02607,2466.5,2465.8,4.5053]
[1750783827656,6.60771,2466.6,2465.8,6.53193]
[1750783827856,2.02607,2466.5,2465.8,4.5053]
[1750783828156,0.81059,2466.0,2465.8,3.2078]
[1750783828356,0.81058,2466.1,2465.8,3.2078]
[1750783828661,5.23404,2466.3,2465.8,4.01845]
[1750783828863,0.81062,2465.9,2465.5,2.0669]
[1750783829065,0.81064,2465.9,2465.7,0.81066]
[1750783829361,1.3244,2466.2,2465.5,2.37877953]
[1750783829362,0.81069,2465.7,2465.5,2.37877953]
[1750783829570,2.02651,2466.0,2465.5,1.56804953]
[1750783829571,0.81072,2465.6,2465.5,1.56804953]
[1750783829770,0.81075,2465.5,2465.4,3.2078]
[1750783830265,0.81075,2465.5,2465.4,4.01859]
[1750783830564,0.81075,2465.5,2465.4,3.2078]
[1750783831963,2.02675,2465.7,2465.1,2.37891953]
[1750783832166,4.6067,2465.6,2465.0,4.77584953]
[1750783832468,0.81083,2465.3,2465.2,0.81083]
[1750783832672,0.81087,2465.2,2465.1,0.81087]
[1750783832869,0.81084,2465.3,2465.2,0.81084]
[1750783833068,2.02689,2465.5,2465.0,3.2078]
[1750783833272,3.4259,2465.4,2464.9,1.56804953]
[1750783833565,0.81098,2464.8,2464.7,3.2078]
[1750783833959,0.81111,2464.5,2464.3,1.56804953]
[1750783834163,1.3989,2464.7,2464.3,2.37916953]
[1750783834471,0.81096,2464.9,2464.8,0.81098]
[1750783834667,0.81098,2464.8,2464.4,3.2078]
[1750783834861,16.93417,2465.2,2464.7,0.811]
[1750783835067,2.02697,2465.4,2464.4,6.59289]
[1750783835265,0.81098,2464.8,2464.7,0.81101]
[1750783835659,3.2078,2465.0,2464.9,0.81095]
[1750783835860,16.93691,2465.5,2465.1,2.02719]
[1750783835861,3.2078,2465.5,2465.1,2.02719]
[1750783836060,4.01856,2465.5,2465.4,0.81079]
[1750783836365,3.2078,2465.5,2465.4,0.81079]
[1750783836570,44.0078,2465.9,2465.4,0.81079]
[1750783836760,3.2078,2465.9,2465.8,0.81066]
[1750783837070,0.8106,2466.0,2465.7,3.2078]
[1750783837268,44.0078,2466.2,2465.4,3.2078]
[1750783837471,3.2078,2465.8,2464.9,2.24484953]
[1750783837670,0.81084,2465.3,2464.9,0.6768]
[1750783837868,15.9041,2465.7,2464.9,4.10465]
[1750783838174,0.8108,2465.4,2465.2,0.81085]
[1750783838667,0.8108,2465.4,2465.3,0.81082]
[1750783839068,17.93085,2465.7,2465.2,0.81084]
[1750783839069,0.81082,2465.3,2465.2,0.81084]
[1750783839266,0.81082,2465.4,2465.3,0.81082]
[1750783839466,0.81082,2465.3,2465.2,0.81083]
[1750783839674,0.81084,2465.3,2465.1,3.2078]
[1750783840075,0.81085,2465.2,2465.1,3.2078]
[1750783840577,0.81084,2465.3,2465.2,0.81084]
[1750783840777,17.93085,2465.7,2465.3,0.81081]
[1750783840975,0.81081,2465.4,2465.3,0.81081]
[1750783841276,0.81077,2465.5,2465.4,0.81077]
[1750783841476,0.81077,2465.5,2465.1,3.2078]
[1750783841477,0.81074,2465.6,2465.5,0.81075]
[1750783841671,0.81076,2465.5,2465.4,0.81077]
[1750783842773,2.09895,2465.6,2465.5,0.81075]
[1750783842974,0.81076,2465.5,2465.2,2.02712]
[1750783843176,1.2882,2465.6,2465.5,0.81075]
[1750783843475,2.09894,2465.6,2465.5,0.81075]
[1750783843973,1.2882,2465.6,2465.5,0.81075]
[1750783844275,0.81076,2465.5,2465.4,0.81076]
[1750783844875,0.81079,2465.4,2465.3,0.8108]
[1750783845080,0.81082,2465.3,2465.2,0.81083]
[1750783845374,1.2882,2465.6,2464.9,5.67271953]
[1750783845575,0.81084,2465.3,2465.2,0.81084]
[1750783845777,0.81081,2465.4,2465.0,2.0273]
[1750783845971,0.81083,2465.3,2465.2,0.81083]
[1750783846177,3.31502,2465.6,2465.2,0.81085]
[1750783846570,0.81081,2465.4,2465.3,0.81082]
[1750783846772,0.81083,2465.3,2465.2,0.81083]
[1750783847376,3.2078,2465.5,2464.9,5.67272953]
[1750783847578,0.81095,2464.9,2464.7,4.77584953]
[1750783847776,0.81092,2465.0,2464.9,0.81094]
[1750783848077,0.81093,2465.0,2464.9,0.81093]
[1750783848478,0.81094,2465.0,2464.9,0.81094]
[1750783848679,14.538,2465.1,2465.0,0.81092]
[1750783848979,0.8109,2465.1,2465.0,0.8109]
[1750783849172,17.96309,2465.4,2465.1,0.81086]
[1750783849173,0.81087,2465.2,2465.1,0.81086]
[1750783849369,15.34881,2465.4,2465.3,0.81082]
[1750783849570,0.81083,2465.3,2465.2,0.81082]
[1750783849980,14.538,2465.4,2465.0,1.3632]
[1750783850170,15.34881,2465.4,2465.3,0.81082]
[1750783850877,15.34879,2465.4,2465.3,0.81082]
[1750783851078,14.538,2465.4,2465.3,0.81082]
[1750783852779,14.538,2465.4,2465.0,8.16631953]
[1750783852780,49.9228,2465.8,2465.4,0.81079]
[1750783853077,0.81078,2465.5,2465.4,0.81075]
[1750783853284,0.81074,2465.6,2465.5,0.81071]
[1750783853578,0.81079,2465.5,2465.4,0.81077]
[1750783853773,2.02691,2465.5,2465.1,1.56804953]
[1750783854078,0.81085,2465.3,2465.2,0.81082]
[1750783854469,0.81079,2465.4,2465.2,0.81083]
[1750783854675,1.3133,2465.7,2465.3,0.81079]
[1750783854982,1.3133,2465.7,2465.5,0.81075]
[1750783855181,2.124,2465.7,2465.5,0.81075]
[1750783855383,2.12401,2465.7,2465.2,2.02708]
[1750783855576,0.81072,2465.6,2465.2,2.02708]
[1750783855773,0.81072,2465.6,2465.1,4.89626953]
[1750783855774,2.02681,2465.6,2465.1,1.56804953]
[1750783855981,0.81085,2465.2,2465.0,2.37895953]
[1750783856282,0.81089,2465.1,2464.9,2.37896953]
[1750783856485,0.81086,2465.2,2465.0,2.37894953]
[1750783856675,0.8109,2465.1,2464.9,2.37896953]
[1750783856880,0.81095,2464.9,2464.8,1.56804953]
[1750783857073,0.81095,2464.9,2464.7,5.58684953]
[1750783857279,1.3167,2465.0,2464.7,3.2078]
[1750783857479,0.81098,2464.8,2464.7,4.77584953]
[1750783857785,0.81098,2464.8,2464.7,4.01882]
[1750783858085,1.3167,2465.0,2464.7,3.2078]
[1750783858288,2.12764,2465.0,2464.8,0.81097]
[1750783858486,2.12764,2465.0,2464.7,4.01879]
[1750783858487,1.3167,2465.0,2464.7,4.01879]
[1750783858781,1.3167,2465.0,2464.7,3.2078]
[1750783858979,0.81101,2464.8,2464.6,2.37909953]
[1750783859182,1.4107,2464.7,2464.6,2.37909953]
[1750783859383,41.61093,2465.0,2464.6,1.56804953]
[1750783859684,0.81095,2464.9,2464.7,0.811]
[1750783859885,0.81095,2464.9,2464.7,0.81099]
[1750783860285,41.61094,2465.0,2464.8,0.81098]
[1750783860485,0.81095,2464.9,2464.8,0.81098]
[1750783860687,37.25895,2464.9,2464.7,0.81099]
[1750783860889,0.81098,2464.8,2464.6,2.37906953]
[1750783861185,40.46677,2464.9,2464.5,1.56804953]
[1750783861381,0.81105,2464.6,2464.5,1.56804953]
[1750783861586,50.74176,2464.9,2464.3,1.56804953]
[1750783861901,0.81106,2464.6,2464.4,0.81109]
[1750783862082,50.96,2464.8,2464.5,0.81107]
[1750783862083,14.54,2464.7,2464.5,0.81107]
[1750783862289,49.9308,2464.9,2464.4,2.0278]
[1750783862485,3.2078,2465.2,2464.8,1.56804953]
[1750783862694,3.2078,2465.2,2465.1,0.81089]
[1750783863390,4.01866,2465.2,2464.9,1.56804953]
[1750783863594,36.396,2465.4,2464.9,4.77584953]
[1750783863793,0.81082,2465.3,2464.9,4.77584953]
[1750783864100,0.81082,2465.3,2464.8,1.56804953]
[1750783864101,5.23494,2465.2,2464.8,1.56804953]
[1750783864397,4.01868,2465.2,2464.9,0.81093]
[1750783864691,39.5758,2465.2,2464.9,0.81094]
[1750783864995,36.368,2465.2,2465.1,0.81089]
[1750783865194,0.8108,2465.4,2465.2,0.81085]
[1750783865489,44.0078,2465.5,2465.0,1.3103]
[1750783865490,3.2078,2465.5,2465.0,2.87834953]
[1750783865680,46.723,2465.6,2465.3,0.8108]
[1750783865681,60.897,2465.6,2465.3,0.8108]
[1750783865884,0.81075,2465.5,2465.3,2.37884953]
[1750783866084,60.897,2465.6,2465.4,0.81079]
[1750783866291,0.81079,2465.4,2465.3,1.56804953]
[1750783866490,5.94256,2466.3,2465.8,0.81065]
[1750783866697,0.81063,2465.9,2465.7,0.81066]
[1750783866992,20.11655,2466.3,2465.7,1.58107576]
[1750783867384,0.81054,2466.2,2466.0,0.81058]
[1750783867586,3.2078,2466.3,2465.9,4.0184]
[1750783867783,0.81057,2466.1,2465.9,6.90977576]
[1750783867982,4.01832,2466.3,2466.1,0.81054]
[1750783868187,0.81056,2466.1,2466.0,0.81058]
[1750783868391,3.2078,2466.3,2466.0,1.3415]
[1750783868589,8.2043279,2467.6,2466.2,6.6108165]
[1750783868796,3.2078,2467.6,2466.8,11.39969226]
[1750783868997,0.81012,2467.5,2467.1,1.58107576]
[1750783869189,3.2078,2467.6,2467.3,0.81016]
[1750783869405,3.2078,2467.6,2467.2,2.92257576]
[1750783869594,3.2078,2467.6,2467.2,2.15168]
[1750783869788,3.2078,2467.6,2467.4,0.81011]
[1750783870086,14.172,2467.9,2467.2,1.3415]
[1750783870490,14.98198,2467.9,2467.6,0.81006]
[1750783870689,14.98198,2467.9,2467.2,7.9523165]
[1750783870690,14.172,2467.9,2467.8,0.81]
[1750783870886,3.2078,2468.0,2467.4,3.2078]
[1750783871103,0.80988,2468.2,2467.9,0.80995]
[1750783871490,17.3798,2468.7,2468.1,3.2078]
[1750783871797,14.172,2468.7,2468.1,3.2078]
[1750783871991,3.2078,2468.4,2467.8,3.2078]
[1750783872190,0.8098,2468.5,2468.0,0.80992]
[1750783872403,0.80975,2468.6,2468.2,0.80985]
[1750783872603,4.01755,2468.6,2468.2,0.80985]
[1750783872897,3.2078,2470.4,2468.6,2.02434]
[1750783873089,3.2078,2470.0,2469.3,3.2078]
[1750783873401,0.80937,2469.8,2469.3,4.01729]
[1750783873595,0.80935,2469.8,2469.3,4.01729]
[1750783873993,0.80932,2469.9,2469.3,4.01729]
[1750783874397,3.2078,2470.0,2469.3,3.2078]
[1750783874797,3.2078,2469.7,2469.3,3.2078]
[1750783875004,6.6108165,2470.1,2469.3,3.2078]
[1750783875005,14.162,2469.6,2469.3,4.01729]
[1750783875407,14.97141,2469.6,2469.0,3.2078]
[1750783875697,14.97141,2469.6,2469.1,0.80956]
[1750783875898,14.162,2469.6,2469.1,0.80956]
[1750783876104,14.162,2469.6,2469.0,3.2078]
[1750783876295,14.162,2469.6,2469.4,0.80946]
[1750783876495,14.162,2469.6,2469.0,3.2078]
[1750783876695,14.97141,2469.6,2469.0,3.2078]
[1750783877100,14.97141,2469.6,2469.2,0.80952]
[1750783877301,14.162,2469.6,2469.3,0.8095]
[1750783877501,14.97142,2469.6,2469.2,0.80952]
[1750783877698,14.162,2469.6,2469.3,0.80951]
[1750783878202,14.97141,2469.6,2469.3,0.80951]
[1750783878398,16.34381,2469.6,2469.3,0.80951]
[1750783878607,0.80944,2469.5,2469.2,0.80952]
[1750783878906,15.5344,2469.6,2469.0,3.2078]
[1750783879100,0.80956,2469.2,2469.0,3.2078]
[1750783879299,0.80957,2469.1,2469.0,3.2078]
[1750783879506,0.80975,2468.6,2468.5,3.2078]
[1750783879902,9.8186165,2468.7,2467.8,3.2078]
[1750783880106,0.80997,2467.9,2467.8,3.2078]
[1750783880705,1.3606,2468.2,2467.8,3.2078]
[1750783880903,0.80995,2468.0,2467.8,3.2078]
[1750783881109,0.80997,2467.9,2467.8,3.2078]
[1750783881311,15.5156,2468.2,2467.8,3.2078]
[1750783881708,0.80991,2468.1,2467.8,3.2078]
[1750783882011,14.96489,2468.2,2467.8,4.01777]
[1750783882214,14.96489,2468.2,2468.1,3.2078]
[1750783882912,101.622,2468.4,2468.1,3.2078]
[1750783883109,101.622,2468.4,2468.1,4.01768]
[1750783883304,0.80987,2468.2,2468.1,3.2078]
[1750783883811,0.80994,2468.0,2467.8,3.2078]
[1750783884014,0.80996,2468.0,2467.8,3.2078]
[1750783884312,0.80996,2468.0,2467.8,4.01779]
[1750783884515,0.80992,2468.1,2467.8,4.01779]
[1750783884710,1.3948,2468.3,2467.8,3.2078]
[1750783884913,4.6026,2468.3,2467.8,3.2078]
[1750783885217,0.80987,2468.2,2467.9,0.80995]
[1750783885419,46.667,2468.4,2467.8,3.2078]
[1750783885715,0.80987,2468.2,2468.1,3.2078]
[1750783886110,16.36066,2468.3,2468.1,4.0177]
[1750783886505,0.80968,2468.8,2468.1,8.2078]
[1750783886705,1.3564,2469.0,2468.5,2.02443]
[1750783886907,1.3564,2469.0,2468.5,3.2078]
[1750783887309,60.459,2469.1,2468.5,3.2078]
[1750783887505,60.459,2469.1,2469.0,0.8096]
[1750783888310,4.01726,2469.5,2468.8,3.2078]
[1750783888509,4.01726,2469.5,2469.2,0.80951]
[1750783888711,14.60043,2469.6,2469.0,2.02399]
[1750783888906,0.80946,2469.5,2469.4,3.2078]
[1750783889113,0.80946,2469.5,2469.0,6.6108165]
[1750783889114,13.791,2469.6,2469.1,3.2078]
[1750783889513,0.80949,2469.4,2469.2,0.80953]
[1750783889717,14.60042,2469.6,2469.1,3.2078]
[1750783890014,14.60043,2469.6,2469.3,0.8095]
[1750783890209,14.60043,2469.6,2469.1,3.2078]
[1750783890411,0.80943,2469.6,2469.1,3.2078]
[1750783890721,0.80945,2469.5,2469.2,0.80951]
[1750783891015,1.3634,2469.6,2469.1,3.2078]
[1750783891218,1.3634,2469.6,2469.3,0.80949]
[1750783891219,2.17281,2469.6,2469.3,0.80949]
[1750783891426,2.17281,2469.6,2469.4,0.80947]
[1750783891611,2.17281,2469.6,2469.3,0.80949]
[1750783891928,0.80944,2469.5,2469.2,0.80952]
[1750783892134,1.3634,2469.6,2469.1,3.2078]
[1750783892523,0.80945,2469.5,2469.2,0.80954]
[1750783892720,4.5712,2469.6,2469.1,3.2078]
[1750783892924,0.80952,2469.3,2469.1,4.01736]
[1750783893119,1.384,2469.4,2469.1,3.2078]
[1750783893326,0.80962,2469.0,2468.8,3.2078]
[1750783893531,0.80975,2468.6,2468.5,3.2078]
[1750783893829,46.9226165,2468.9,2467.8,3.2078]
[1750783894021,0.80981,2468.4,2468.1,3.2078]
[1750783894223,1.384,2468.3,2468.1,3.2078]
[1750783894426,1.384,2468.3,2468.1,4.01769]
[1750783894732,2.19384,2468.3,2468.1,3.2078]
[1750783895031,2.19384,2468.3,2468.0,0.80992]
[1750783895032,2.19386,2468.3,2468.0,0.80992]
[1750783895225,1.384,2468.3,2467.8,3.2078]
[1750783895421,2.19384,2468.3,2468.0,0.80992]
[1750783895630,0.80989,2468.2,2467.9,0.80995]
[1750783895925,13.789,2469.2,2468.3,2.02451]
[1750783896117,15.1031,2469.2,2469.0,3.2078]
[1750783896319,47.46842,2469.6,2469.0,3.2078]
[1750783896626,47.46842,2469.6,2469.3,0.8095]
[1750783896826,47.9731,2469.6,2469.0,3.2078]
[1750783897133,48.78252,2469.6,2469.0,3.2078]
[1750783897428,48.78252,2469.6,2469.4,0.80947]
[1750783898030,48.78252,2469.6,2469.3,0.80949]
[1750783898031,0.80944,2469.5,2469.3,0.80949]
[1750783898232,48.78252,2469.6,2469.4,0.80946]
[1750783898432,47.9731,2469.6,2469.5,0.80944]
[1750783898729,48.78251,2469.6,2469.3,3.2078]
[1750783898929,47.9731,2469.6,2469.5,0.80944]
[1750783899430,48.78251,2469.6,2469.4,0.80945]
[1750783900831,47.9731,2469.6,2469.5,0.80944]
[1750783901133,48.78251,2469.6,2469.3,3.2078]
[1750783901432,46.659,2469.6,2469.5,0.80944]
[1750783901640,46.659,2469.6,2469.4,0.80945]
[1750783901828,48.0021,2469.6,2469.5,0.80944]
[1750783902235,0.80946,2469.5,2469.3,4.01728]
[1750783902532,48.0021,2469.6,2469.5,0.80944]
[1750783902737,48.81151,2469.6,2469.3,3.2078]
[1750783902933,48.81151,2469.6,2469.4,0.80947]
[1750783903132,48.0021,2469.6,2469.5,0.80944]
[1750783903531,46.659,2469.6,2469.5,0.80944]
[1750783904228,0.80936,2469.8,2469.5,0.80944]
[1750783904424,0.80938,2469.7,2469.3,3.2078]
[1750783904624,3.2078,2469.6,2469.0,3.2078]
[1750783904824,3.2078,2470.0,2469.5,6.6108165]
[1750783905030,2.02217,2471.3,2470.1,2.02311]
[1750783905331,36.1613,2471.2,2470.9,0.80895]
[1750783905529,4.01674,2471.1,2470.4,5.23065]
[1750783905833,1.2927,2471.0,2470.9,0.80898]
[1750783906032,15.88667,2471.0,2470.7,3.2078]
[1750783906231,15.88666,2471.0,2470.8,0.80901]
[1750783906431,15.0777,2471.0,2470.9,0.80898]
[1750783906637,15.0777,2471.0,2470.7,3.2078]
[1750783906825,15.88665,2471.0,2470.8,0.809]
[1750783907022,15.0777,2471.0,2470.9,0.80898]
[1750783907827,15.0777,2471.0,2470.8,0.80899]
[1750783908225,15.0777,2471.0,2470.7,3.2078]
[1750783908432,0.80901,2470.8,2470.7,3.2078]
[1750783908628,1.2927,2471.0,2470.7,3.2078]
[1750783908830,2.02137,2472.3,2470.9,6.6108165]
[1750783909032,1.2924,2471.7,2471.6,0.80875]
[1750783909338,0.7241,2472.2,2471.6,4.01654]
[1750783909339,0.80863,2472.0,2471.6,4.01654]
[1750783909534,0.80863,2472.0,2471.0,2.02235]
[1750783909535,1.2924,2472.1,2471.9,3.2078]
[1750783909734,1.53266,2472.2,2471.9,4.01645]
[1750783909735,0.7241,2472.2,2471.9,4.01645]
[1750783909935,1.53266,2472.2,2471.9,3.2078]
[1750783910126,15.4375,2472.2,2471.6,3.2078]
[1750783910636,0.80872,2471.7,2471.6,3.2078]
[1750783911734,0.80871,2471.8,2471.6,3.2078]
[1750783911934,2.23672,2471.7,2471.6,3.2078]
[1750783912134,60.7751,2472.2,2471.6,3.2078]
[1750783912330,1.428,2472.1,2472.0,3.2078]
[1750783912832,2.23659,2472.1,2472.0,3.2078]
[1750783913036,0.80876,2471.6,2471.5,3.2078]
[1750783913232,0.80883,2471.4,2471.1,3.2078]
[1750783913429,0.80888,2471.2,2471.1,3.2078]
[1750783914938,0.80898,2470.9,2470.8,3.2078]
[1750783915533,0.80908,2470.6,2470.5,3.2078]
[1750783916038,0.80907,2470.7,2470.5,3.2078]
[1750783916239,1.3678,2470.8,2470.5,3.2078]
[1750783916539,0.80908,2470.6,2470.5,3.2078]
[1750783917434,0.80916,2470.4,2470.1,4.01702]
[1750783917643,0.80919,2470.3,2470.1,3.2078]
[1750783918145,5.23043,2470.7,2470.1,3.2078]
[1750783918438,1.3131,2470.6,2470.1,3.2078]
[1750783918632,0.80919,2470.3,2470.1,3.2078]
[1750783918836,0.80921,2470.2,2470.1,3.2078]
[1750783919136,13.415,2470.4,2470.1,3.2078]
[1750783919137,0.8092,2470.3,2470.1,3.2078]
[1750783919529,13.415,2470.4,2470.1,3.2078]
[1750783919840,0.80921,2470.2,2470.1,3.2078]
[1750783920341,2.2133,2470.3,2470.1,3.2078]
[1750783920531,13.415,2470.4,2470.1,3.2078]
[1750783920726,13.415,2470.4,2470.2,0.80919]
[1750783920927,14.22416,2470.4,2470.2,0.80919]
[1750783921442,13.415,2470.4,2470.1,3.2078]
[1750783921837,0.80919,2470.3,2470.1,4.01702]
[1750783922039,13.415,2470.4,2470.1,3.2078]
[1750783922342,14.22416,2470.4,2470.2,0.8092]
[1750783922533,13.415,2470.4,2470.3,0.80918]
[1750783922730,1.4041,2470.8,2470.6,0.80907]
[1750783922731,0.80903,2470.8,2470.6,0.80907]
[1750783922932,13.416,2471.1,2471.0,0.80894]
[1750783923134,0.80895,2471.0,2470.9,3.2078]
[1750783923344,13.416,2471.1,2470.9,3.2078]
[1750783923345,14.22494,2471.1,2470.9,4.01677]
[1750783923539,0.80895,2471.0,2470.9,3.2078]
[1750783923738,14.22493,2471.1,2470.9,4.01677]
[1750783923936,0.80895,2471.0,2470.9,3.2078]
[1750783924138,14.7792,2471.1,2470.9,3.2078]
[1750783924436,0.80895,2471.0,2470.9,3.2078]
[1750783924635,2.17215,2471.0,2470.9,3.2078]
[1750783924844,7.17215,2471.0,2470.9,3.2078]
[1750783925039,2.02246,2470.9,2470.4,4.01693]
[1750783925339,0.80902,2470.8,2470.4,3.2078]
[1750783925547,0.80899,2470.9,2470.7,0.80902]
[1750783925843,13.416,2471.1,2470.7,0.80902]
[1750783925844,13.416,2471.1,2471.0,0.80895]
[1750783926043,14.22492,2471.1,2471.0,4.01675]
[1750783926235,13.416,2471.1,2470.7,4.01684]
[1750783926541,0.80901,2470.8,2470.7,3.2078]
[1750783927435,2.02266,2470.7,2470.2,0.80919]
[1750783927639,37.00872,2470.6,2470.0,3.2078]
[1750783927840,0.80924,2470.1,2470.0,3.2078]
[1750783928036,0.80934,2469.8,2469.7,3.2078]
[1750783928241,0.80934,2469.8,2469.4,3.2078]
[1750783928438,0.80932,2469.9,2469.7,4.01715]
[1750783928637,0.80931,2470.0,2469.7,4.01716]
[1750783928845,15.57617,2470.1,2469.8,0.80932]
[1750783929041,14.7669,2470.1,2469.7,4.01717]
[1750783929345,15.57615,2470.1,2469.8,0.80934]
[1750783929740,0.80928,2470.0,2469.8,0.80934]
[1750783929940,0.80933,2469.9,2469.7,4.01715]
[1750783930149,0.80929,2470.0,2469.8,0.80934]
[1750783930446,0.80932,2469.9,2469.7,4.01717]
[1750783930651,14.22526,2470.1,2469.9,0.8093]
[1750783930853,0.80929,2470.0,2469.8,0.80933]
[1750783931039,13.416,2470.1,2469.7,3.2078]
[1750783931235,47.43118,2470.3,2470.1,0.80922]
[1750783931441,13.417,2470.5,2470.3,0.80915]
[1750783931640,13.417,2470.5,2470.4,0.80915]
[1750783932545,13.417,2470.5,2470.4,2.11415]
[1750783932747,46.627,2471.0,2470.4,1.305]
[1750783932947,46.627,2471.0,2470.6,3.2078]
[1750783933346,0.80905,2470.7,2470.6,3.2078]
[1750783933551,0.80904,2470.8,2470.6,4.01687]
[1750783933744,0.80905,2470.7,2470.6,3.2078]
[1750783933944,0.80919,2470.3,2470.2,3.2078]
[1750783934145,1.4219,2470.7,2470.2,3.2078]
[1750783934443,0.8091,2470.6,2470.3,0.80916]
[1750783934752,0.8091,2470.6,2470.4,0.80914]
[1750783934953,34.854,2470.8,2470.2,5.23082]
[1750783935149,34.854,2470.8,2470.2,3.2078]
[1750783935348,0.80918,2470.3,2470.2,3.2078]
[1750783935947,13.055,2470.5,2470.2,3.2078]
[1750783936147,0.80915,2470.4,2470.2,3.2078]
[1750783936351,0.80918,2470.3,2470.2,3.2078]
[1750783936555,1.3914,2470.4,2470.2,3.2078]
[1750783936852,0.80918,2470.3,2470.2,3.2078]
[1750783938852,13.055,2470.6,2470.2,3.2078]
[1750783939261,0.80918,2470.3,2470.2,3.2078]
[1750783943257,0.80918,2470.3,2470.2,4.01701]
[1750783943657,0.80918,2470.3,2470.2,3.2078]
[1750783943847,0.80917,2470.4,2470.2,4.01701]
[1750783944449,0.80917,2470.4,2470.0,1.55954031]
[1750783944450,2.02292,2470.4,2470.0,1.55954031]
[1750783944648,0.80928,2470.0,2469.9,3.2078]
[1750783944857,0.80927,2470.1,2469.9,3.2078]
[1750783945053,0.80928,2470.0,2469.9,3.2078]
[1750783945657,5.80928,2470.0,2469.9,3.2078]
[1750783945958,2.02348,2469.7,2469.4,1.55954031]
[1750783946361,0.80944,2469.5,2469.4,1.55954031]
[1750783946550,0.80947,2469.4,2469.3,4.76734031]
[1750783947156,0.80947,2469.4,2469.3,3.2078]